[Event "Live Chess"]
[Site "Chess.com"]
[Date "2023.05.20"]
[Round "-"]
[White "Missedidea"]
[Black "CheckThis4"]
[Result "0-1"]
[WhiteElo "1684"]
[BlackElo "2546"]
[TimeControl "300"]
[EndTime "10:55:07 PDT"]
[Termination "CheckThis4 won by resignation"]

1. d4 {[%clk 0:04:57.7]} 1... Nf6 {[%clk 0:04:58.1]} 2. c4 {[%clk 0:04:55.8]}
2... e5 {[%clk 0:04:56.1]} 3. dxe5 {[%clk 0:04:54.2]} 3... Ng4 {[%clk
0:04:54.7]} 4. Bf4 {[%clk 0:04:52.4]} 4... Bb4+ {[%clk 0:04:51.9]} 5. Nd2 {[%clk
0:04:50.7]} 5... d6 {[%clk 0:04:51.2]} 6. Nf3 {[%clk 0:04:49.2]} 6... dxe5
{[%clk 0:04:49.2]} 7. Nxe5 {[%clk 0:04:41.6]} 7... Bxd2+ {[%clk 0:04:40.5]} 8.
Qxd2 {[%clk 0:04:37.4]} 8... Qxd2+ {[%clk 0:04:36.4]} 9. Bxd2 {[%clk 0:04:35.6]}
9... Nxe5 {[%clk 0:04:35.1]} 10. Bc3 {[%clk 0:04:32.7]} 10... f6 {[%clk
0:04:32.9]} 11. e3 {[%clk 0:04:29]} 11... Nbc6 {[%clk 0:04:31.3]} 12. f4 {[%clk
0:04:25.8]} 12... Ng4 {[%clk 0:04:25.1]} 13. Ke2 {[%clk 0:04:22]} 13... Be6
{[%clk 0:04:21.8]} 14. b3 {[%clk 0:04:19]} 14... a5 {[%clk 0:04:17.6]} 15. h3
{[%clk 0:04:16.9]} 15... Nh6 {[%clk 0:04:15]} 16. g4 {[%clk 0:04:14.6]} 16... a4
{[%clk 0:04:13.5]} 17. f5 {[%clk 0:04:13.7]} 17... Bd7 {[%clk 0:04:02.7]} 18.
Bg2 {[%clk 0:04:12.4]} 18... Nf7 {[%clk 0:04:00]} 19. Bd5 {[%clk 0:04:08.5]}
19... Nfe5 {[%clk 0:03:55.3]} 20. b4 {[%clk 0:04:02.3]} 20... O-O-O {[%clk
0:03:38.8]} 21. b5 {[%clk 0:03:57.1]} 21... Ne7 {[%clk 0:03:37.1]} 22. Bxe5
{[%clk 0:03:47.4]} 22... Nxd5 {[%clk 0:03:27.7]} 23. Bb2 {[%clk 0:03:34.5]}
23... Nb6 {[%clk 0:03:24.7]} 24. Rac1 {[%clk 0:03:30.8]} 24... Nxc4 {[%clk
0:03:21.9]} 25. Rxc4 {[%clk 0:03:28.2]} 25... Bxb5 {[%clk 0:03:20.9]} 26. Rc1
{[%clk 0:03:25.7]} 26... Rhe8 {[%clk 0:03:18.5]} 27. Bd4 {[%clk 0:03:13]} 27...
Rxd4 {[%clk 0:03:02.7]} 0-1

[Event "Live Chess"]
[Site "Chess.com"]
[Date "2023.05.20"]
[Round "-"]
[White "JoshMcK"]
[Black "Horseymobile"]
[Result "1-0"]
[WhiteElo "1536"]
[BlackElo "1240"]
[TimeControl "300"]
[EndTime "10:55:08 PDT"]
[Termination "JoshMcK won on time"]

1. e4 {[%clk 0:04:57.1]} 1... c6 {[%clk 0:04:58.4]} 2. d4 {[%clk 0:04:55.8]}
2... d5 {[%clk 0:04:57.9]} 3. e5 {[%clk 0:04:53.2]} 3... c5 {[%clk 0:04:56.2]}
4. Nf3 {[%clk 0:04:51.1]} 4... Nc6 {[%clk 0:04:54]} 5. dxc5 {[%clk 0:04:50.4]}
5... Bg4 {[%clk 0:04:52.2]} 6. a3 {[%clk 0:04:46.4]} 6... Nxe5 {[%clk
0:04:47.8]} 7. Be2 {[%clk 0:04:45.6]} 7... Nc6 {[%clk 0:04:27.5]} 8. b4 {[%clk
0:04:40.9]} 8... Nf6 {[%clk 0:04:15.5]} 9. O-O {[%clk 0:04:39.6]} 9... e6 {[%clk
0:04:00.1]} 10. Nc3 {[%clk 0:04:33.8]} 10... Be7 {[%clk 0:03:53.1]} 11. Bf4
{[%clk 0:04:26.5]} 11... Bxf3 {[%clk 0:03:38.5]} 12. Bxf3 {[%clk 0:04:24]} 12...
e5 {[%clk 0:03:37.9]} 13. Be3 {[%clk 0:04:18.4]} 13... d4 {[%clk 0:03:36.7]} 14.
Bxc6+ {[%clk 0:04:08.7]} 14... bxc6 {[%clk 0:03:30.6]} 15. Bxd4 {[%clk
0:03:59.1]} 15... exd4 {[%clk 0:03:28]} 16. Ne2 {[%clk 0:03:58.3]} 16... O-O
{[%clk 0:02:59.1]} 17. Nxd4 {[%clk 0:03:56.1]} 17... Qc7 {[%clk 0:02:55.4]} 18.
Qf3 {[%clk 0:03:50.7]} 18... Rac8 {[%clk 0:02:28.5]} 19. Rfe1 {[%clk 0:03:46]}
19... Nd5 {[%clk 0:02:19.2]} 20. Nf5 {[%clk 0:03:44]} 20... Bf6 {[%clk
0:02:13.8]} 21. c4 {[%clk 0:03:36.2]} 21... Bxa1 {[%clk 0:01:59]} 22. cxd5
{[%clk 0:03:27.7]} 22... Bf6 {[%clk 0:01:33.1]} 23. d6 {[%clk 0:03:24.6]} 23...
Qd7 {[%clk 0:01:30.8]} 24. Ne7+ {[%clk 0:03:21.6]} 24... Bxe7 {[%clk 0:01:28.9]}
25. Rxe7 {[%clk 0:03:21.5]} 25... Qd8 {[%clk 0:01:22.4]} 26. h3 {[%clk 0:03:08]}
26... a6 {[%clk 0:00:58.7]} 27. Ra7 {[%clk 0:03:02.2]} 27... Ra8 {[%clk
0:00:48.5]} 28. Rc7 {[%clk 0:02:58.6]} 28... Qe8 {[%clk 0:00:44]} 29. Re7 {[%clk
0:02:57.5]} 29... Qd8 {[%clk 0:00:41.7]} 30. Qxc6 {[%clk 0:02:49.4]} 30... Qc8
{[%clk 0:00:35]} 31. Qf3 {[%clk 0:02:47.3]} 31... Qb8 {[%clk 0:00:25.3]} 32. Rb7
{[%clk 0:02:16.5]} 32... Qe8 {[%clk 0:00:16.2]} 33. Re7 {[%clk 0:02:04.9]} 33...
Qb8 {[%clk 0:00:13.8]} 34. d7 {[%clk 0:02:02.8]} 34... Qc7 {[%clk 0:00:10.3]}
35. c6 {[%clk 0:01:57.2]} 35... Qd6 {[%clk 0:00:07.4]} 36. Qe3 {[%clk
0:01:52.2]} 36... Qd1+ {[%clk 0:00:04.4]} 37. Kh2 {[%clk 0:01:50.2]} 37... Qd6+
{[%clk 0:00:03.2]} 38. g3 {[%clk 0:01:48.8]} 38... Ra7 {[%clk 0:00:01.2]} 39.
Re8 {[%clk 0:01:46.4]} 1-0

[Event "Live Chess"]
[Site "Chess.com"]
[Date "2023.05.20"]
[Round "-"]
[White "aliciabutteriss"]
[Black "Davidagye"]
[Result "0-1"]
[WhiteElo "542"]
[BlackElo "1655"]
[TimeControl "300"]
[EndTime "10:55:09 PDT"]
[Termination "Davidagye won by resignation"]

1. e4 {[%clk 0:04:57.2]} 1... e5 {[%clk 0:04:57.8]} 2. Nf3 {[%clk 0:04:55.9]}
2... Nc6 {[%clk 0:04:55.3]} 3. Bc4 {[%clk 0:04:53.4]} 3... Nf6 {[%clk
0:04:53.8]} 4. O-O {[%clk 0:04:52.3]} 4... Bc5 {[%clk 0:04:49.9]} 5. Nc3 {[%clk
0:04:43.9]} 5... O-O {[%clk 0:04:44.4]} 6. d3 {[%clk 0:04:36.7]} 6... h6 {[%clk
0:04:41.9]} 7. Be3 {[%clk 0:04:25.6]} 7... Bxe3 {[%clk 0:04:38.5]} 8. fxe3
{[%clk 0:04:24.4]} 8... a6 {[%clk 0:04:27.4]} 9. d4 {[%clk 0:04:18.1]} 9... exd4
{[%clk 0:04:21]} 10. exd4 {[%clk 0:04:16]} 10... b5 {[%clk 0:04:20.6]} 11. Bd5
{[%clk 0:03:56.9]} 11... Nxd5 {[%clk 0:04:19.1]} 12. exd5 {[%clk 0:03:53.4]}
12... Ne7 {[%clk 0:04:17.3]} 13. Qe2 {[%clk 0:03:47.6]} 13... Bb7 {[%clk
0:04:14]} 14. Rae1 {[%clk 0:03:41.2]} 14... Nxd5 {[%clk 0:04:10.4]} 15. Nxd5
{[%clk 0:03:28.6]} 15... Bxd5 {[%clk 0:04:08.3]} 16. b3 {[%clk 0:03:15.3]} 16...
d6 {[%clk 0:04:06.3]} 17. c4 {[%clk 0:03:10.3]} 17... bxc4 {[%clk 0:04:05.1]}
18. bxc4 {[%clk 0:03:08.4]} 18... Be6 {[%clk 0:04:04.4]} 19. d5 {[%clk
0:03:03.6]} 19... Bg4 {[%clk 0:04:02.9]} 20. h3 {[%clk 0:02:45.3]} 20... Bh5
{[%clk 0:03:46]} 21. Qe3 {[%clk 0:02:37.7]} 21... Qd7 {[%clk 0:03:42.8]} 22. Ng5
{[%clk 0:02:20.4]} 22... hxg5 {[%clk 0:03:38.6]} 23. Qxg5 {[%clk 0:02:14.2]}
23... Bg6 {[%clk 0:03:13.7]} 24. Re3 {[%clk 0:01:57.1]} 24... Rfe8 {[%clk
0:03:08.9]} 25. Rxe8+ {[%clk 0:01:45.9]} 25... Rxe8 {[%clk 0:03:03.8]} 26. h4
{[%clk 0:01:34.7]} 26... Re5 {[%clk 0:02:52.3]} 27. Qf4 {[%clk 0:01:26.8]} 27...
Re4 {[%clk 0:02:51]} 28. Qg3 {[%clk 0:01:11.9]} 28... Rg4 {[%clk 0:02:49.3]} 29.
Qf3 {[%clk 0:01:09.4]} 29... Be4 {[%clk 0:02:47]} 30. Qg3 {[%clk 0:01:01.4]}
30... Rxg3 {[%clk 0:02:45.6]} 0-1

[Event "Live Chess"]
[Site "Chess.com"]
[Date "2023.05.20"]
[Round "-"]
[White "Tushinskiy"]
[Black "Richardallis"]
[Result "1-0"]
[WhiteElo "2107"]
[BlackElo "1640"]
[TimeControl "300"]
[EndTime "10:55:10 PDT"]
[Termination "Tushinskiy won by resignation"]

1. d4 {[%clk 0:04:53.3]} 1... c5 {[%clk 0:04:58.7]} 2. c3 {[%clk 0:04:53.2]}
2... cxd4 {[%clk 0:04:55.8]} 3. cxd4 {[%clk 0:04:53.1]} 3... f5 {[%clk
0:04:55.3]} 4. Nf3 {[%clk 0:04:52.8]} 4... Nf6 {[%clk 0:04:54.4]} 5. Nc3 {[%clk
0:04:52.7]} 5... g6 {[%clk 0:04:53.4]} 6. Bf4 {[%clk 0:04:52.2]} 6... a6 {[%clk
0:04:51.1]} 7. e3 {[%clk 0:04:51.7]} 7... Bg7 {[%clk 0:04:50]} 8. Rc1 {[%clk
0:04:51]} 8... O-O {[%clk 0:04:48.2]} 9. Bg3 {[%clk 0:04:50.2]} 9... d5 {[%clk
0:04:46.6]} 10. Be2 {[%clk 0:04:48.8]} 10... Nc6 {[%clk 0:04:45.4]} 11. O-O
{[%clk 0:04:48]} 11... Ne4 {[%clk 0:04:43.8]} 12. Nxd5 {[%clk 0:04:43.9]} 12...
e6 {[%clk 0:04:42.6]} 13. Nc7 {[%clk 0:04:37.1]} 13... Nxg3 {[%clk 0:04:41]} 14.
Nxa8 {[%clk 0:04:33.1]} 14... Nxf1 {[%clk 0:04:39.6]} 15. Bxf1 {[%clk
0:04:31.7]} 15... Bd7 {[%clk 0:04:38.5]} 16. d5 {[%clk 0:04:27.8]} 16... exd5
{[%clk 0:04:32.2]} 17. Qxd5+ {[%clk 0:04:27.7]} 17... Rf7 {[%clk 0:04:27.3]} 18.
Bc4 {[%clk 0:04:24.8]} 18... Be8 {[%clk 0:04:13.8]} 19. Qxd8 {[%clk 0:04:22.5]}
19... Nxd8 {[%clk 0:04:12.6]} 20. Bxf7+ {[%clk 0:04:20.4]} 20... Nxf7 {[%clk
0:04:11.3]} 21. Rc8 {[%clk 0:04:19.2]} 21... Kf8 {[%clk 0:04:10]} 22. Nc7 {[%clk
0:04:17.6]} 22... Nd6 {[%clk 0:04:09]} 23. Rb8 {[%clk 0:04:11.8]} 23... Bxb2
{[%clk 0:04:07.3]} 24. Nxe8 {[%clk 0:04:10.8]} 24... Nxe8 {[%clk 0:04:05.8]} 25.
Rxb7 {[%clk 0:04:07.9]} 25... Nf6 {[%clk 0:04:04.6]} 26. Ng5 {[%clk 0:04:05.3]}
26... h6 {[%clk 0:03:57.3]} 27. Ne6+ {[%clk 0:04:03.1]} 27... Ke8 {[%clk
0:03:56.7]} 28. Rxb2 {[%clk 0:04:01.1]} 1-0

[Event "Live Chess"]
[Site "Chess.com"]
[Date "2023.05.20"]
[Round "-"]
[White "TDCMF"]
[Black "WelshTiger"]
[Result "0-1"]
[WhiteElo "350"]
[BlackElo "2429"]
[TimeControl "300"]
[EndTime "10:55:19 PDT"]
[Termination "WelshTiger won by checkmate"]

1. e4 {[%clk 0:04:49.4]} 1... c6 {[%clk 0:04:58]} 2. Bc4 {[%clk 0:04:48.3]} 2...
d5 {[%clk 0:04:57.9]} 3. exd5 {[%clk 0:04:46.7]} 3... cxd5 {[%clk 0:04:57.8]} 4.
Bxd5 {[%clk 0:04:45.9]} 4... Qxd5 {[%clk 0:04:56.7]} 5. d3 {[%clk 0:04:43.5]}
5... Qxg2 {[%clk 0:04:55.6]} 6. Nf3 {[%clk 0:04:42.3]} 6... Qxh1+ {[%clk
0:04:54.8]} 7. Ke2 {[%clk 0:04:41.4]} 7... Bg4 {[%clk 0:04:52]} 8. Qxh1 {[%clk
0:04:38.7]} 8... Nf6 {[%clk 0:04:51]} 9. h3 {[%clk 0:04:35.4]} 9... Bh5 {[%clk
0:04:50.1]} 10. Ke1 {[%clk 0:04:15.4]} 10... Nc6 {[%clk 0:04:47.9]} 11. Ng5
{[%clk 0:04:13.6]} 11... e6 {[%clk 0:04:45.1]} 12. Bf4 {[%clk 0:04:03.5]} 12...
Bc5 {[%clk 0:04:40.2]} 13. Bc7 {[%clk 0:03:53.6]} 13... O-O {[%clk 0:04:37.9]}
14. Nc3 {[%clk 0:03:42.8]} 14... Rac8 {[%clk 0:04:31.8]} 15. Bf4 {[%clk
0:03:29.4]} 15... Nd4 {[%clk 0:04:30.9]} 16. Rd1 {[%clk 0:03:20.7]} 16... Nxc2+
{[%clk 0:04:27.8]} 17. Kd2 {[%clk 0:03:18.4]} 17... Nd4 {[%clk 0:04:27.7]} 18.
Qxb7 {[%clk 0:03:04]} 18... h6 {[%clk 0:04:14.6]} 19. Nxf7 {[%clk 0:02:55.7]}
19... Bxf7 {[%clk 0:04:10.8]} 20. Bd6 {[%clk 0:02:51.9]} 20... Bxd6 {[%clk
0:04:09]} 21. Nb5 {[%clk 0:02:50.2]} 21... Bf4+ {[%clk 0:04:07.7]} 22. Ke1
{[%clk 0:02:46]} 22... Rb8 {[%clk 0:04:00.2]} 23. Qxa7 {[%clk 0:02:29.3]} 23...
Nxb5 {[%clk 0:03:58.8]} 24. Qa4 {[%clk 0:02:13.4]} 24... Nd5 {[%clk 0:03:55.9]}
25. Rc1 {[%clk 0:02:08.9]} 25... Bxc1 {[%clk 0:03:53.3]} 26. Qc4 {[%clk
0:02:05.6]} 26... Bxb2 {[%clk 0:03:50.1]} 27. a4 {[%clk 0:02:00]} 27... Nd4
{[%clk 0:03:49.1]} 28. Qc7 {[%clk 0:01:47.7]} 28... Nxc7 {[%clk 0:03:47.2]} 29.
a5 {[%clk 0:01:45.3]} 29... Bc3+ {[%clk 0:03:45.1]} 30. Kd1 {[%clk 0:01:43.4]}
30... e5 {[%clk 0:03:44.9]} 31. f3 {[%clk 0:01:42.8]} 31... Rb2 {[%clk
0:03:42.2]} 32. a6 {[%clk 0:01:42]} 32... Bb3+ {[%clk 0:03:41.5]} 33. Kc1 {[%clk
0:01:40.1]} 33... Ne2# {[%clk 0:03:34.7]} 0-1

[Event "Live Chess"]
[Site "Chess.com"]
[Date "2023.05.20"]
[Round "-"]
[White "bedsdrout"]
[Black "Driftboard"]
[Result "0-1"]
[WhiteElo "384"]
[BlackElo "695"]
[TimeControl "300"]
[EndTime "10:55:19 PDT"]
[Termination "Driftboard won by checkmate"]

1. b3 {[%clk 0:04:55.4]} 1... e5 {[%clk 0:04:58.8]} 2. e4 {[%clk 0:04:53.5]}
2... Nf6 {[%clk 0:04:56]} 3. Bc4 {[%clk 0:04:50.8]} 3... Nc6 {[%clk 0:04:54.3]}
4. Nc3 {[%clk 0:04:43.6]} 4... Bb4 {[%clk 0:04:52.5]} 5. Nd5 {[%clk 0:04:38.4]}
5... O-O {[%clk 0:04:49.2]} 6. Nxf6+ {[%clk 0:04:35.2]} 6... Qxf6 {[%clk
0:04:47.3]} 7. Qh5 {[%clk 0:04:30.3]} 7... h6 {[%clk 0:04:38]} 8. Qh4 {[%clk
0:04:21]} 8... Bc5 {[%clk 0:04:29.4]} 9. Be2 {[%clk 0:04:13]} 9... Qxh4 {[%clk
0:04:13.3]} 10. Nf3 {[%clk 0:03:56.8]} 10... Qxf2+ {[%clk 0:04:07.8]} 11. Kd1
{[%clk 0:03:44.3]} 11... Qxg2 {[%clk 0:04:02.6]} 12. Rf1 {[%clk 0:03:38]} 12...
d6 {[%clk 0:03:55.8]} 13. Ng1 {[%clk 0:03:17.9]} 13... Bxg1 {[%clk 0:03:42.5]}
14. Bf3 {[%clk 0:03:09.5]} 14... Qxf1# {[%clk 0:03:38.9]} 0-1

[Event "Live Chess"]
[Site "Chess.com"]
[Date "2023.05.20"]
[Round "-"]
[White "ViktorTheCoolBoy"]
[Black "onemoretime1975"]
[Result "1-0"]
[WhiteElo "2542"]
[BlackElo "1909"]
[TimeControl "300"]
[EndTime "10:55:24 PDT"]
[Termination "ViktorTheCoolBoy won by resignation"]

1. e4 {[%clk 0:04:54.7]} 1... e6 {[%clk 0:04:58.6]} 2. d4 {[%clk 0:04:47.9]}
2... d5 {[%clk 0:04:57.2]} 3. e5 {[%clk 0:04:40.2]} 3... c5 {[%clk 0:04:55.2]}
4. c3 {[%clk 0:04:38.1]} 4... Nc6 {[%clk 0:04:53.5]} 5. Nf3 {[%clk 0:04:31.8]}
5... Bd7 {[%clk 0:04:52.1]} 6. Bd3 {[%clk 0:04:28.3]} 6... Qb6 {[%clk 0:04:49]}
7. O-O {[%clk 0:04:25.4]} 7... cxd4 {[%clk 0:04:47.8]} 8. a4 {[%clk 0:04:24.1]}
8... dxc3 {[%clk 0:04:43.8]} 9. Nxc3 {[%clk 0:04:19.9]} 9... a6 {[%clk
0:04:42.4]} 10. Qe2 {[%clk 0:04:17]} 10... g6 {[%clk 0:04:27.3]} 11. h4 {[%clk
0:04:10.7]} 11... h5 {[%clk 0:04:24]} 12. Bg5 {[%clk 0:04:08.5]} 12... Bh6
{[%clk 0:04:21.4]} 13. Rfc1 {[%clk 0:03:59.9]} 13... Nd4 {[%clk 0:04:12.2]} 14.
Nxd4 {[%clk 0:03:58.1]} 14... Qxd4 {[%clk 0:04:10.1]} 15. Rc2 {[%clk 0:03:04.7]}
15... Ne7 {[%clk 0:03:45.4]} 16. Bxh6 {[%clk 0:03:02.6]} 16... Rxh6 {[%clk
0:03:42.6]} 17. Rd1 {[%clk 0:03:01.2]} 17... Qxh4 {[%clk 0:03:32]} 18. Rdc1
{[%clk 0:02:38]} 18... Nc6 {[%clk 0:03:22.1]} 19. Qe3 {[%clk 0:02:34.6]} 19...
Rh8 {[%clk 0:03:07.2]} 20. Ne2 {[%clk 0:02:32.5]} 20... Qxa4 {[%clk 0:02:50.8]}
21. Qg5 {[%clk 0:02:24.3]} 21... Qd4 {[%clk 0:02:37.6]} 22. Nxd4 {[%clk
0:02:18.6]} 1-0

[Event "Live Chess"]
[Site "Chess.com"]
[Date "2023.05.20"]
[Round "-"]
[White "Jio85"]
[Black "FlyingChessKestrel13"]
[Result "0-1"]
[WhiteElo "2015"]
[BlackElo "2139"]
[TimeControl "300"]
[EndTime "10:55:25 PDT"]
[Termination "FlyingChessKestrel13 won by resignation"]

1. e4 {[%clk 0:04:58.2]} 1... c5 {[%clk 0:04:58.8]} 2. Nf3 {[%clk 0:04:57.2]}
2... Nc6 {[%clk 0:04:57.7]} 3. d4 {[%clk 0:04:56.1]} 3... cxd4 {[%clk
0:04:56.8]} 4. Nxd4 {[%clk 0:04:56]} 4... e5 {[%clk 0:04:55.4]} 5. Nxc6 {[%clk
0:04:51.1]} 5... bxc6 {[%clk 0:04:54]} 6. Bc4 {[%clk 0:04:49.6]} 6... Nf6 {[%clk
0:04:52.3]} 7. f3 {[%clk 0:04:46.6]} 7... d5 {[%clk 0:04:50.4]} 8. exd5 {[%clk
0:04:43.7]} 8... cxd5 {[%clk 0:04:49.7]} 9. Bb5+ {[%clk 0:04:40.9]} 9... Bd7
{[%clk 0:04:49.2]} 10. Qe2 {[%clk 0:04:38.5]} 10... Qa5+ {[%clk 0:04:40.9]} 11.
Nc3 {[%clk 0:04:35.4]} 11... Bd6 {[%clk 0:04:31.1]} 12. Bxd7+ {[%clk 0:04:32.4]}
12... Nxd7 {[%clk 0:04:28.8]} 13. Qb5 {[%clk 0:04:24.8]} 13... Qxb5 {[%clk
0:04:24.5]} 14. Nxb5 {[%clk 0:04:23.3]} 14... Ke7 {[%clk 0:04:22.4]} 15. Nxd6
{[%clk 0:04:19.3]} 15... Kxd6 {[%clk 0:04:20.3]} 16. Be3 {[%clk 0:04:16.4]}
16... Rhc8 {[%clk 0:04:18.4]} 17. O-O-O {[%clk 0:04:14.3]} 17... d4 {[%clk
0:04:16.8]} 18. Kb1 {[%clk 0:04:00.5]} 18... Ke6 {[%clk 0:04:14.4]} 19. Bf2
{[%clk 0:03:59.2]} 19... f5 {[%clk 0:04:11.3]} 20. f4 {[%clk 0:03:48.6]} 20...
exf4 {[%clk 0:04:05.8]} 21. Bxd4 {[%clk 0:03:46.3]} 21... g5 {[%clk 0:04:04.7]}
22. Rhe1+ {[%clk 0:03:38.6]} 22... Kf7 {[%clk 0:04:03.5]} 23. h4 {[%clk
0:03:16.6]} 23... h6 {[%clk 0:03:59.9]} 24. g3 {[%clk 0:03:12.3]} 24... fxg3
{[%clk 0:03:57.9]} 25. hxg5 {[%clk 0:03:10.1]} 25... hxg5 {[%clk 0:03:56.9]} 26.
Be3 {[%clk 0:03:08.2]} 26... f4 {[%clk 0:03:55.8]} 27. Bxf4 {[%clk 0:03:00.2]}
27... gxf4 {[%clk 0:03:52.6]} 28. Rxd7+ {[%clk 0:02:59.3]} 28... Kf6 {[%clk
0:03:51.7]} 29. Rf1 {[%clk 0:02:53.5]} 29... Kg5 {[%clk 0:03:49.5]} 30. Rf7
{[%clk 0:02:34.5]} 30... Rf8 {[%clk 0:03:37.5]} 31. R1xf4 {[%clk 0:02:30.5]}
31... g2 {[%clk 0:03:26.8]} 32. Rg7+ {[%clk 0:02:19.2]} 32... Kxf4 {[%clk
0:03:24.8]} 0-1

[Event "Live Chess"]
[Site "Chess.com"]
[Date "2023.05.20"]
[Round "-"]
[White "MarkLim1"]
[Black "Ferrarifan27"]
[Result "0-1"]
[WhiteElo "1610"]
[BlackElo "2068"]
[TimeControl "300"]
[EndTime "10:55:25 PDT"]
[Termination "Ferrarifan27 won by resignation"]

1. d4 {[%clk 0:04:56.8]} 1... Nf6 {[%clk 0:04:58.6]} 2. Nf3 {[%clk 0:04:56.1]}
2... d5 {[%clk 0:04:57.4]} 3. c4 {[%clk 0:04:54.6]} 3... e6 {[%clk 0:04:56.5]}
4. cxd5 {[%clk 0:04:54]} 4... exd5 {[%clk 0:04:54.2]} 5. Nc3 {[%clk 0:04:53.3]}
5... Be7 {[%clk 0:04:50.6]} 6. Qc2 {[%clk 0:04:52.4]} 6... O-O {[%clk
0:04:49.8]} 7. Bg5 {[%clk 0:04:51.9]} 7... c6 {[%clk 0:04:48.4]} 8. e3 {[%clk
0:04:51.2]} 8... Bg4 {[%clk 0:04:47]} 9. Bd3 {[%clk 0:04:50]} 9... Nbd7 {[%clk
0:04:45.7]} 10. O-O {[%clk 0:04:44.8]} 10... Bxf3 {[%clk 0:04:44.4]} 11. gxf3
{[%clk 0:04:43.5]} 11... h6 {[%clk 0:04:43.6]} 12. Bh4 {[%clk 0:04:42.5]} 12...
Re8 {[%clk 0:04:31.5]} 13. e4 {[%clk 0:04:39.6]} 13... Nh5 {[%clk 0:04:20.8]}
14. Bxe7 {[%clk 0:04:37.7]} 14... Qxe7 {[%clk 0:04:19.9]} 15. e5 {[%clk
0:04:35.9]} 15... Nf4 {[%clk 0:04:17.5]} 16. Kh1 {[%clk 0:04:33.1]} 16... Qh4
{[%clk 0:03:54.9]} 17. Rg1 {[%clk 0:04:26.9]} 17... Nxe5 {[%clk 0:03:51.5]} 18.
dxe5 {[%clk 0:04:23.6]} 18... Rxe5 {[%clk 0:03:51.4]} 19. Rg3 {[%clk 0:04:15.9]}
19... Rh5 {[%clk 0:03:48.2]} 20. h3 {[%clk 0:04:09.1]} 20... Nxh3 {[%clk
0:03:46]} 21. Kg2 {[%clk 0:04:08.4]} 21... Nf4+ {[%clk 0:03:44.4]} 0-1

[Event "Live Chess"]
[Site "Chess.com"]
[Date "2023.05.20"]
[Round "-"]
[White "CheckString"]
[Black "Prijmak"]
[Result "0-1"]
[WhiteElo "1222"]
[BlackElo "1035"]
[TimeControl "300"]
[EndTime "10:55:39 PDT"]
[Termination "Prijmak won by resignation"]

1. e4 {[%clk 0:04:58.8]} 1... e5 {[%clk 0:04:58.3]} 2. Nc3 {[%clk 0:04:58.1]}
2... Nc6 {[%clk 0:04:56.8]} 3. Bc4 {[%clk 0:04:56.8]} 3... Nf6 {[%clk
0:04:54.8]} 4. d3 {[%clk 0:04:54.7]} 4... Bc5 {[%clk 0:04:50.6]} 5. f4 {[%clk
0:04:52.3]} 5... d6 {[%clk 0:04:48.7]} 6. Nf3 {[%clk 0:04:51.2]} 6... Bg4 {[%clk
0:04:42.5]} 7. h3 {[%clk 0:04:49.2]} 7... Be6 {[%clk 0:04:38.9]} 8. f5 {[%clk
0:04:42.8]} 8... Bxc4 {[%clk 0:04:36.6]} 9. dxc4 {[%clk 0:04:42.7]} 9... Nd4
{[%clk 0:04:29]} 10. Bg5 {[%clk 0:04:34.1]} 10... h6 {[%clk 0:04:26.7]} 11. Bxf6
{[%clk 0:04:22.9]} 11... Qxf6 {[%clk 0:04:23.7]} 12. Nd5 {[%clk 0:04:20]} 12...
Qd8 {[%clk 0:04:20.2]} 13. Qd2 {[%clk 0:04:05]} 13... Nxf3+ {[%clk 0:04:14]} 14.
gxf3 {[%clk 0:04:04.9]} 14... c6 {[%clk 0:04:11.5]} 15. Nc3 {[%clk 0:04:00.6]}
15... Qg5 {[%clk 0:03:59.5]} 16. O-O-O {[%clk 0:03:56.3]} 16... O-O-O {[%clk
0:03:41.9]} 17. Rhg1 {[%clk 0:03:48.8]} 17... Qxd2+ {[%clk 0:03:36.4]} 18. Rxd2
{[%clk 0:03:47.3]} 18... Be3 {[%clk 0:03:32.3]} 19. Rxg7 {[%clk 0:03:42.9]}
19... Bxd2+ {[%clk 0:03:29.3]} 20. Kxd2 {[%clk 0:03:42.8]} 20... Rdf8 {[%clk
0:03:25.7]} 21. b4 {[%clk 0:03:33.7]} 21... Kd7 {[%clk 0:03:23.9]} 22. c5 {[%clk
0:03:31.7]} 22... Ke7 {[%clk 0:03:14.5]} 23. cxd6+ {[%clk 0:03:26.4]} 23... Kxd6
{[%clk 0:03:13.4]} 24. Na4 {[%clk 0:03:14.8]} 24... b6 {[%clk 0:03:06.9]} 25. c4
{[%clk 0:03:12.1]} 25... Ke7 {[%clk 0:03:02.9]} 26. c5 {[%clk 0:03:07]} 26... b5
{[%clk 0:02:59.4]} 27. Nc3 {[%clk 0:03:06.1]} 27... Kf6 {[%clk 0:02:53.2]} 28.
Rg1 {[%clk 0:03:04.6]} 28... Rhg8 {[%clk 0:02:47.7]} 29. Ne2 {[%clk 0:02:58.2]}
29... Rd8+ {[%clk 0:02:45.1]} 30. Kc3 {[%clk 0:02:56.9]} 30... Rxg1 {[%clk
0:02:43.3]} 31. Nxg1 {[%clk 0:02:56.8]} 31... Rd1 {[%clk 0:02:39.3]} 32. Ne2
{[%clk 0:02:55.8]} 32... Rf1 {[%clk 0:02:31.8]} 33. Ng3 {[%clk 0:02:41.5]} 33...
Rxf3+ {[%clk 0:02:30.1]} 0-1

[Event "Live Chess"]
[Site "Chess.com"]
[Date "2023.05.20"]
[Round "-"]
[White "LiamClery2020"]
[Black "MaximKhimchenko"]
[Result "1-0"]
[WhiteElo "2083"]
[BlackElo "1347"]
[TimeControl "300"]
[EndTime "10:55:40 PDT"]
[Termination "LiamClery2020 won - game abandoned"]

1. e4 {[%clk 0:04:59.2]} 1... f5 {[%clk 0:04:59.8]} 2. exf5 {[%clk 0:04:58.1]}
2... Nf6 {[%clk 0:04:50.8]} 3. g4 {[%clk 0:04:57.2]} 3... d5 {[%clk 0:04:48.6]}
4. g5 {[%clk 0:04:56.1]} 4... Ne4 {[%clk 0:04:46.1]} 5. d3 {[%clk 0:04:54.8]}
5... Nd6 {[%clk 0:04:41.7]} 6. Qh5+ {[%clk 0:04:53.8]} 6... Kd7 {[%clk
0:04:38.7]} 7. Nc3 {[%clk 0:04:50.6]} 7... g6 {[%clk 0:04:36.5]} 8. fxg6 {[%clk
0:04:49.1]} 8... hxg6 {[%clk 0:04:36]} 9. Qxh8 {[%clk 0:04:47.8]} 9... Nf5
{[%clk 0:04:35]} 10. Bh3 {[%clk 0:04:43.2]} 10... Bg7 {[%clk 0:04:34]} 11. Bxf5+
{[%clk 0:04:42.2]} 11... gxf5 {[%clk 0:04:33.9]} 12. Qxg7 {[%clk 0:04:41.4]} 1-0

[Event "Live Chess"]
[Site "Chess.com"]
[Date "2023.05.20"]
[Round "-"]
[White "JamesWallman"]
[Black "Supertromp"]
[Result "0-1"]
[WhiteElo "774"]
[BlackElo "2183"]
[TimeControl "300"]
[EndTime "10:55:44 PDT"]
[Termination "Supertromp won by checkmate"]

1. e4 {[%clk 0:04:56.7]} 1... c5 {[%clk 0:04:58.9]} 2. d4 {[%clk 0:04:52.8]}
2... cxd4 {[%clk 0:04:58]} 3. Qxd4 {[%clk 0:04:50.1]} 3... Nc6 {[%clk
0:04:56.7]} 4. Qd1 {[%clk 0:04:45.6]} 4... Nf6 {[%clk 0:04:55.3]} 5. Nc3 {[%clk
0:04:42.3]} 5... g6 {[%clk 0:04:54.7]} 6. Nf3 {[%clk 0:04:38.5]} 6... Bg7 {[%clk
0:04:53.6]} 7. Bd3 {[%clk 0:04:32.4]} 7... O-O {[%clk 0:04:52.3]} 8. Be3 {[%clk
0:04:29]} 8... d5 {[%clk 0:04:41]} 9. e5 {[%clk 0:04:25.2]} 9... Ng4 {[%clk
0:04:36.1]} 10. O-O {[%clk 0:04:17.7]} 10... d4 {[%clk 0:04:27.7]} 11. Nxd4
{[%clk 0:04:11.6]} 11... Nxd4 {[%clk 0:04:26.3]} 12. Bxd4 {[%clk 0:04:01.9]}
12... Qxd4 {[%clk 0:04:24.7]} 13. Qf3 {[%clk 0:03:29.5]} 13... Qxe5 {[%clk
0:04:13.8]} 14. Rae1 {[%clk 0:03:22.3]} 14... Qxh2# {[%clk 0:04:12.1]} 0-1